[Event "Betsys MČR v online bleskovém šachu 2021"]
[Site "Chess.com"]
[Date "2021.04.17"]
[Round "3"]
[White "Miky2610"]
[Black "matycz07"]
[Result "1-0"]
[WhiteElo "1843"]
[BlackElo "998"]
[TimeControl "180+1"]
[EndTime "9:27:31 PDT"]
[Termination "Uživatel Miky2610 zvítězil matem"]

1. c4 {[%clk 0:03:00.9]} 1... e5 {[%clk 0:02:58]} 2. Nc3 {[%clk 0:03:00.9]} 2...
Bc5 {[%clk 0:02:56.1]} 3. e3 {[%clk 0:02:59.1]} 3... Nf6 {[%clk 0:02:55.9]} 4.
d4 {[%clk 0:02:56.7]} 4... exd4 {[%clk 0:02:55.4]} 5. exd4 {[%clk 0:02:56.7]}
5... Bb6 {[%clk 0:02:51.2]} 6. Nf3 {[%clk 0:02:52.9]} 6... O-O {[%clk
0:02:45.6]} 7. Be2 {[%clk 0:02:50.7]} 7... d6 {[%clk 0:02:44]} 8. O-O {[%clk
0:02:49.7]} 8... c5 {[%clk 0:02:34.2]} 9. d5 {[%clk 0:02:47.6]} 9... Na6 {[%clk
0:02:24.3]} 10. a3 {[%clk 0:02:45.9]} 10... Bf5 {[%clk 0:02:08.9]} 11. Bf4
{[%clk 0:02:44.1]} 11... h6 {[%clk 0:01:58.9]} 12. Nb5 {[%clk 0:02:41.7]} 12...
Bc7 {[%clk 0:01:42.3]} 13. Qd2 {[%clk 0:02:39.3]} 13... Nb8 {[%clk 0:01:38.1]}
14. Nh4 {[%clk 0:02:25.2]} 14... Ne4 {[%clk 0:01:31.4]} 15. Qe3 {[%clk 0:02:19]}
15... Qxh4 {[%clk 0:01:30.9]} 16. Nxc7 {[%clk 0:02:11.8]} 16... Nd7 {[%clk
0:01:11.3]} 17. Nxa8 {[%clk 0:02:09.5]} 17... Rxa8 {[%clk 0:01:11.9]} 18. Bg3
{[%clk 0:02:04.6]} 18... Nxg3 {[%clk 0:01:11.6]} 19. fxg3 {[%clk 0:02:01]} 19...
Qe4 {[%clk 0:01:05.2]} 20. Qxe4 {[%clk 0:01:56.2]} 20... Bxe4 {[%clk 0:01:05.8]}
21. Rae1 {[%clk 0:01:54.1]} 21... Re8 {[%clk 0:01:02.6]} 22. Bh5 {[%clk
0:01:51.3]} 22... g6 {[%clk 0:00:58.5]} 23. Bf3 {[%clk 0:01:49.7]} 23... Bxf3
{[%clk 0:00:57.7]} 24. Rxe8+ {[%clk 0:01:48.9]} 24... Kg7 {[%clk 0:00:57.6]} 25.
Rxf3 {[%clk 0:01:46.4]} 25... Nf6 {[%clk 0:00:57.6]} 26. Re7 {[%clk 0:01:44.6]}
26... h5 {[%clk 0:00:56.6]} 27. Rxb7 {[%clk 0:01:43.8]} 27... a6 {[%clk
0:00:55.7]} 28. Rb6 {[%clk 0:01:43.1]} 28... a5 {[%clk 0:00:56]} 29. Rxd6 {[%clk
0:01:42]} 29... Ne4 {[%clk 0:00:55.9]} 30. Rd7 {[%clk 0:01:37.7]} 30... Nf6
{[%clk 0:00:54.8]} 31. d6 {[%clk 0:01:33.9]} 31... Nxd7 {[%clk 0:00:53.7]} 32.
Re3 {[%clk 0:01:31.2]} 32... Kf6 {[%clk 0:00:51.4]} 33. Kf2 {[%clk 0:01:28.9]}
33... Ne5 {[%clk 0:00:49.7]} 34. b3 {[%clk 0:01:22.7]} 34... Nd7 {[%clk
0:00:48.4]} 35. h3 {[%clk 0:01:20]} 35... g5 {[%clk 0:00:48.5]} 36. g4 {[%clk
0:01:19.5]} 36... hxg4 {[%clk 0:00:46.4]} 37. hxg4 {[%clk 0:01:19.1]} 37... Kg6
{[%clk 0:00:45.1]} 38. Kg3 {[%clk 0:01:18.1]} 38... f6 {[%clk 0:00:45.4]} 39. b4
{[%clk 0:01:16]} 39... f5 {[%clk 0:00:45.6]} 40. gxf5+ {[%clk 0:01:12.1]} 40...
Kxf5 {[%clk 0:00:46.1]} 41. bxa5 {[%clk 0:01:11.5]} 41... Ne5 {[%clk 0:00:41]}
42. a6 {[%clk 0:01:09.8]} 42... Nxc4 {[%clk 0:00:41]} 43. Rf3+ {[%clk 0:01:09]}
43... Ke6 {[%clk 0:00:39.7]} 44. Rd3 {[%clk 0:01:06.6]} 44... Nxd6 {[%clk
0:00:39.4]} 45. Rxd6+ {[%clk 0:01:05.2]} 45... Kxd6 {[%clk 0:00:39.4]} 46. a7
{[%clk 0:01:05.3]} 46... Kc7 {[%clk 0:00:40.3]} 47. a8=Q {[%clk 0:01:05.6]}
47... Kd6 {[%clk 0:00:39.7]} 48. Kg4 {[%clk 0:01:05.2]} 48... c4 {[%clk
0:00:38.8]} 49. Kxg5 {[%clk 0:01:04.7]} 49... Kc5 {[%clk 0:00:39.3]} 50. Qc8+
{[%clk 0:01:04.3]} 50... Kd4 {[%clk 0:00:39.4]} 51. Kf4 {[%clk 0:01:03]} 51...
Kc3 {[%clk 0:00:39.7]} 52. Qc5 {[%clk 0:01:01.2]} 52... Kb3 {[%clk 0:00:38.4]}
53. g4 {[%clk 0:00:58.5]} 53... c3 {[%clk 0:00:38.4]} 54. g5 {[%clk 0:00:58.6]}
54... c2 {[%clk 0:00:37.5]} 55. g6 {[%clk 0:00:57.7]} 55... Kb2 {[%clk
0:00:37.7]} 56. Qb5+ {[%clk 0:00:57.6]} 56... Kc1 {[%clk 0:00:37.5]} 57. g7
{[%clk 0:00:56.1]} 57... Kd1 {[%clk 0:00:37.7]} 58. Qd5+ {[%clk 0:00:55.2]}
58... Kc1 {[%clk 0:00:37]} 59. g8=Q {[%clk 0:00:53.1]} 59... Kb1 {[%clk
0:00:37]} 60. Qb8+ {[%clk 0:00:51.8]} 60... Kc1 {[%clk 0:00:37.2]} 61. Qa2
{[%clk 0:00:45.7]} 61... Kd2 {[%clk 0:00:36.3]} 62. Qd8+ {[%clk 0:00:44.5]}
62... Kc1 {[%clk 0:00:36.2]} 63. Qh4 {[%clk 0:00:41.1]} 63... Kd2 {[%clk
0:00:35.1]} 64. Qf2+ {[%clk 0:00:40.8]} 64... Kd3 {[%clk 0:00:34.1]} 65. Qb3#
{[%clk 0:00:40.3]} 1-0

[Event "Betsys MČR v online bleskovém šachu 2021"]
[Site "Chess.com"]
[Date "2021.04.17"]
[Round "3"]
[White "vit_rosenbaum"]
[Black "domecek"]
[Result "1-0"]
[WhiteElo "2211"]
[BlackElo "1967"]
[TimeControl "180+1"]
[EndTime "9:27:32 PDT"]
[Termination "Uživatel vit_rosenbaum zvítězil na čas"]

1. e4 {[%clk 0:03:00.9]} 1... c6 {[%clk 0:02:59]} 2. d4 {[%clk 0:03:00.7]} 2...
d5 {[%clk 0:02:58.6]} 3. Nd2 {[%clk 0:03:01.3]} 3... g6 {[%clk 0:02:55.6]} 4.
Ngf3 {[%clk 0:02:59.4]} 4... Bg7 {[%clk 0:02:55.1]} 5. c3 {[%clk 0:02:53.7]}
5... Nd7 {[%clk 0:02:44.6]} 6. Bd3 {[%clk 0:02:52.8]} 6... Ndf6 {[%clk 0:02:37]}
7. e5 {[%clk 0:02:47.3]} 7... Nd7 {[%clk 0:02:33.8]} 8. Nb3 {[%clk 0:02:34.4]}
8... e6 {[%clk 0:02:31.7]} 9. Bg5 {[%clk 0:02:30.3]} 9... Qc7 {[%clk 0:02:30.8]}
10. Qd2 {[%clk 0:02:29.2]} 10... a6 {[%clk 0:02:25.3]} 11. O-O {[%clk
0:02:22.8]} 11... c5 {[%clk 0:02:24.5]} 12. dxc5 {[%clk 0:02:14.9]} 12... Nxc5
{[%clk 0:02:23.4]} 13. Nxc5 {[%clk 0:02:14.8]} 13... Qxc5 {[%clk 0:02:22.2]} 14.
Be3 {[%clk 0:02:03.6]} 14... Qc7 {[%clk 0:02:20.5]} 15. Rfe1 {[%clk 0:01:59.7]}
15... h5 {[%clk 0:01:51.3]} 16. Rad1 {[%clk 0:01:50]} 16... Nh6 {[%clk
0:01:50.3]} 17. c4 {[%clk 0:01:44.2]} 17... dxc4 {[%clk 0:01:45.6]} 18. Bxc4
{[%clk 0:01:44.2]} 18... Nf5 {[%clk 0:01:42.1]} 19. Bc5 {[%clk 0:01:34.4]} 19...
b6 {[%clk 0:01:36.6]} 20. Ba3 {[%clk 0:01:20.6]} 20... Bf8 {[%clk 0:01:34.2]}
21. Rc1 {[%clk 0:01:05.4]} 21... Qd7 {[%clk 0:01:03]} 22. Qc3 {[%clk 0:00:36.5]}
22... Bxa3 {[%clk 0:00:51.8]} 23. Qxa3 {[%clk 0:00:35.3]} 23... Qe7 {[%clk
0:00:48]} 24. Bb5+ {[%clk 0:00:34.8]} 24... Kf8 {[%clk 0:00:40.6]} 25. Qa4
{[%clk 0:00:31.2]} 25... Bb7 {[%clk 0:00:26.1]} 26. Bc6 {[%clk 0:00:30.8]} 26...
Kg7 {[%clk 0:00:19.8]} 27. Qe4 {[%clk 0:00:27.4]} 27... Ra7 {[%clk 0:00:11.3]}
28. Red1 {[%clk 0:00:25.7]} 28... Rc8 {[%clk 0:00:08.5]} 29. Bxb7 {[%clk
0:00:20.7]} 29... Rxc1 {[%clk 0:00:08.5]} 30. Rxc1 {[%clk 0:00:20.1]} 30... Qxb7
{[%clk 0:00:08.4]} 31. Qxb7 {[%clk 0:00:16.1]} 31... Rxb7 {[%clk 0:00:07.6]} 32.
h3 {[%clk 0:00:16.2]} 32... h4 {[%clk 0:00:06.3]} 33. Kh2 {[%clk 0:00:15.2]}
33... b5 {[%clk 0:00:05]} 34. Rc6 {[%clk 0:00:14.6]} 34... a5 {[%clk 0:00:04.8]}
35. Ra6 {[%clk 0:00:12.8]} 35... a4 {[%clk 0:00:04.2]} 36. Rc6 {[%clk 0:00:12]}
36... b4 {[%clk 0:00:03.3]} 37. Rc4 {[%clk 0:00:11.5]} 37... Rb5 {[%clk
0:00:02.5]} 38. Nxh4 {[%clk 0:00:08.9]} 38... Nxh4 {[%clk 0:00:01.8]} 39. Rxh4
{[%clk 0:00:09]} 1-0

[Event "Betsys MČR v online bleskovém šachu 2021"]
[Site "Chess.com"]
[Date "2021.04.17"]
[Round "3"]
[White "Tomasn2003"]
[Black "Honzik1950"]
[Result "0-1"]
[WhiteElo "1119"]
[BlackElo "1493"]
[TimeControl "180+1"]
[EndTime "9:27:34 PDT"]
[Termination "Uživatel Honzik1950 zvítězil po vzdání soupeře"]

1. e4 {[%clk 0:03:00.9]} 1... a6 {[%clk 0:02:59.6]} 2. Nf3 {[%clk 0:03:00.8]}
2... b5 {[%clk 0:02:57.8]} 3. d4 {[%clk 0:02:58.9]} 3... e6 {[%clk 0:02:58.1]}
4. c4 {[%clk 0:02:54.4]} 4... b4 {[%clk 0:02:57.5]} 5. a3 {[%clk 0:02:53.2]}
5... Bb7 {[%clk 0:02:55.1]} 6. d5 {[%clk 0:02:47.8]} 6... a5 {[%clk 0:02:48.1]}
7. Bd2 {[%clk 0:02:43.9]} 7... exd5 {[%clk 0:02:42.6]} 8. cxd5 {[%clk
0:02:40.3]} 8... Nf6 {[%clk 0:02:38.8]} 9. Bd3 {[%clk 0:02:38.6]} 9... Be7
{[%clk 0:02:27.3]} 10. axb4 {[%clk 0:02:36.4]} 10... Bxb4 {[%clk 0:02:22.8]} 11.
Bxb4 {[%clk 0:02:36.4]} 11... axb4 {[%clk 0:02:23.1]} 12. Rxa8 {[%clk 0:02:36]}
12... Bxa8 {[%clk 0:02:23.4]} 13. O-O {[%clk 0:02:34.9]} 13... O-O {[%clk
0:02:23]} 14. Qb3 {[%clk 0:02:32.4]} 14... Qe7 {[%clk 0:02:14.5]} 15. Re1 {[%clk
0:02:31.2]} 15... c5 {[%clk 0:02:00.2]} 16. Nbd2 {[%clk 0:02:29.8]} 16... d6
{[%clk 0:01:49.2]} 17. Qa4 {[%clk 0:02:17.3]} 17... Nbd7 {[%clk 0:01:44.2]} 18.
Bb5 {[%clk 0:02:03.5]} 18... Ne5 {[%clk 0:01:39.8]} 19. Nxe5 {[%clk 0:02:01.8]}
19... Qxe5 {[%clk 0:01:38.6]} 20. Qc2 {[%clk 0:01:19.4]} 20... Nxd5 {[%clk
0:01:32.9]} 21. Nc4 {[%clk 0:01:13.3]} 21... Qe7 {[%clk 0:01:17]} 22. g3 {[%clk
0:00:57.6]} 22... Nf6 {[%clk 0:01:12.1]} 23. e5 {[%clk 0:00:56.2]} 23... Qb7
{[%clk 0:01:02.3]} 24. Kf1 {[%clk 0:00:27.7]} 24... Qxb5 {[%clk 0:00:31.8]} 25.
exf6 {[%clk 0:00:27.5]} 25... d5 {[%clk 0:00:22.3]} 26. fxg7 {[%clk 0:00:24.8]}
26... Rd8 {[%clk 0:00:19.9]} 27. Qe2 {[%clk 0:00:15.3]} 27... Qxc4 {[%clk
0:00:16.4]} 28. Qxc4 {[%clk 0:00:14.8]} 28... dxc4 {[%clk 0:00:16.9]} 29. Re5
{[%clk 0:00:14.8]} 29... Rd5 {[%clk 0:00:13.4]} 30. Rxd5 {[%clk 0:00:14.6]}
30... Bxd5 {[%clk 0:00:12.8]} 31. Ke2 {[%clk 0:00:14.9]} 31... Kxg7 {[%clk
0:00:13.1]} 32. Kd2 {[%clk 0:00:13.6]} 32... Kf6 {[%clk 0:00:13.2]} 33. f4
{[%clk 0:00:12.7]} 33... Ke6 {[%clk 0:00:12.2]} 34. Ke3 {[%clk 0:00:12.8]} 34...
f5 {[%clk 0:00:12.2]} 35. h4 {[%clk 0:00:12.3]} 35... h5 {[%clk 0:00:12.3]} 36.
Kd2 {[%clk 0:00:11.8]} 36... Kd6 {[%clk 0:00:11.6]} 37. Kc2 {[%clk 0:00:11.4]}
37... Be4+ {[%clk 0:00:11.4]} 38. Kd2 {[%clk 0:00:11]} 38... Kd5 {[%clk
0:00:11.7]} 39. Ke3 {[%clk 0:00:10.9]} 39... c3 {[%clk 0:00:10.4]} 40. bxc3
{[%clk 0:00:10.5]} 40... bxc3 {[%clk 0:00:10.8]} 41. Ke2 {[%clk 0:00:10.8]}
41... Kd4 {[%clk 0:00:10.2]} 42. Ke1 {[%clk 0:00:10.5]} 42... Kd3 {[%clk
0:00:10.2]} 43. Kd1 {[%clk 0:00:10.7]} 43... Ke3 {[%clk 0:00:09.7]} 44. Kc1
{[%clk 0:00:11]} 44... Kf3 {[%clk 0:00:09]} 45. g4 {[%clk 0:00:11.2]} 45... Kxg4
{[%clk 0:00:08.8]} 0-1

[Event "Betsys MČR v online bleskovém šachu 2021"]
[Site "Chess.com"]
[Date "2021.04.17"]
[Round "3"]
[White "ReitteN"]
[Black "Nevimjakhrat"]
[Result "1-0"]
[WhiteElo "1769"]
[BlackElo "1479"]
[TimeControl "180+1"]
[EndTime "9:27:35 PDT"]
[Termination "Uživatel ReitteN zvítězil matem"]

1. c4 {[%clk 0:02:52.6]} 1... Nf6 {[%clk 0:02:57.1]} 2. Nc3 {[%clk 0:02:47.9]}
2... g6 {[%clk 0:02:54.2]} 3. g3 {[%clk 0:02:47.9]} 3... Bg7 {[%clk 0:02:53.9]}
4. Bg2 {[%clk 0:02:47.4]} 4... O-O {[%clk 0:02:47.5]} 5. d3 {[%clk 0:02:46.7]}
5... e6 {[%clk 0:02:40.6]} 6. e4 {[%clk 0:02:38.4]} 6... Nc6 {[%clk 0:02:34.7]}
7. Nge2 {[%clk 0:02:34.7]} 7... d6 {[%clk 0:02:29.3]} 8. O-O {[%clk 0:02:25.8]}
8... Bd7 {[%clk 0:02:28]} 9. h3 {[%clk 0:02:22.2]} 9... Qc8 {[%clk 0:02:27.1]}
10. Kh2 {[%clk 0:02:21.6]} 10... e5 {[%clk 0:02:22.2]} 11. f4 {[%clk 0:02:08.1]}
11... h6 {[%clk 0:02:14.7]} 12. Bd2 {[%clk 0:02:06.8]} 12... Nd4 {[%clk
0:02:08.9]} 13. Nxd4 {[%clk 0:02:00.2]} 13... exd4 {[%clk 0:02:09.8]} 14. Nd5
{[%clk 0:02:00.5]} 14... Nxd5 {[%clk 0:02:09.2]} 15. cxd5 {[%clk 0:01:59.2]}
15... f5 {[%clk 0:02:07.6]} 16. Qb3 {[%clk 0:01:55.2]} 16... Kh7 {[%clk
0:01:54.7]} 17. Rac1 {[%clk 0:01:54.3]} 17... Rb8 {[%clk 0:01:36.9]} 18. Rc2
{[%clk 0:01:50]} 18... Qd8 {[%clk 0:01:34.3]} 19. Rfc1 {[%clk 0:01:39.3]} 19...
c6 {[%clk 0:01:30.7]} 20. Bb4 {[%clk 0:01:31.6]} 20... c5 {[%clk 0:01:19]} 21.
Bd2 {[%clk 0:01:30.2]} 21... Rh8 {[%clk 0:01:12.1]} 22. Re1 {[%clk 0:01:19.9]}
22... g5 {[%clk 0:01:02]} 23. Bc1 {[%clk 0:00:51.3]} 23... gxf4 {[%clk
0:00:54.5]} 24. Bxf4 {[%clk 0:00:50.3]} 24... Kg8 {[%clk 0:00:52.1]} 25. Bxd6
{[%clk 0:00:32.5]} 25... b6 {[%clk 0:00:51.2]} 26. Bxb8 {[%clk 0:00:27]} 26...
Qxb8 {[%clk 0:00:51.6]} 27. d6+ {[%clk 0:00:26.7]} 27... Kf8 {[%clk 0:00:47.9]}
28. e5 {[%clk 0:00:26.7]} 28... Rg8 {[%clk 0:00:40.8]} 29. Bd5 {[%clk
0:00:26.7]} 29... Rh8 {[%clk 0:00:36]} 30. Rf2 {[%clk 0:00:18.3]} 30... h5
{[%clk 0:00:22]} 31. e6 {[%clk 0:00:14.8]} 31... Bc8 {[%clk 0:00:16]} 32. Rxf5+
{[%clk 0:00:14.2]} 32... Ke8 {[%clk 0:00:10.6]} 33. d7+ {[%clk 0:00:14.6]} 33...
Bxd7 {[%clk 0:00:08]} 34. exd7+ {[%clk 0:00:15.5]} 34... Kxd7 {[%clk 0:00:08.7]}
35. Bf7 {[%clk 0:00:09.6]} 35... Rf8 {[%clk 0:00:06.4]} 36. Qe6+ {[%clk
0:00:08.5]} 36... Kc7 {[%clk 0:00:05.8]} 37. Rd5 {[%clk 0:00:04]} 37... Kb7
{[%clk 0:00:05.8]} 38. Qd7+ {[%clk 0:00:02.9]} 38... Ka6 {[%clk 0:00:05.8]} 39.
Qa4+ {[%clk 0:00:02.6]} 39... Kb7 {[%clk 0:00:05.6]} 40. Rd7+ {[%clk 0:00:03]}
40... Ka8 {[%clk 0:00:05.6]} 41. Qc6+ {[%clk 0:00:03.2]} 41... Qb7 {[%clk
0:00:03.8]} 42. Qxb7# {[%clk 0:00:03.9]} 1-0

[Event "Betsys MČR v online bleskovém šachu 2021"]
[Site "Chess.com"]
[Date "2021.04.17"]
[Round "3"]
[White "JindrichT_CZE"]
[Black "matyson523"]
[Result "0-1"]
[WhiteElo "2083"]
[BlackElo "1778"]
[TimeControl "180+1"]
[EndTime "9:27:36 PDT"]
[Termination "Uživatel matyson523 zvítězil matem"]

1. e4 {[%clk 0:03:00.9]} 1... c5 {[%clk 0:02:59.7]} 2. c4 {[%clk 0:02:59.8]}
2... Nc6 {[%clk 0:02:59.3]} 3. Nc3 {[%clk 0:02:59.4]} 3... g6 {[%clk 0:02:59]}
4. g3 {[%clk 0:02:59.3]} 4... Bg7 {[%clk 0:02:59.1]} 5. Bg2 {[%clk 0:02:59.3]}
5... d6 {[%clk 0:02:59.3]} 6. Nge2 {[%clk 0:02:57.2]} 6... Nf6 {[%clk
0:02:58.8]} 7. d3 {[%clk 0:02:57.2]} 7... O-O {[%clk 0:02:58.5]} 8. h3 {[%clk
0:02:57]} 8... Nd4 {[%clk 0:02:52.5]} 9. O-O {[%clk 0:02:55.8]} 9... Be6 {[%clk
0:02:49.3]} 10. Nf4 {[%clk 0:02:52.6]} 10... Qd7 {[%clk 0:02:47.2]} 11. Be3
{[%clk 0:02:46.8]} 11... a6 {[%clk 0:02:42.9]} 12. Nce2 {[%clk 0:02:41]} 12...
Nxe2+ {[%clk 0:02:32.3]} 13. Qxe2 {[%clk 0:02:39.6]} 13... Qc7 {[%clk
0:02:31.1]} 14. Nxe6 {[%clk 0:02:36.7]} 14... fxe6 {[%clk 0:02:31.1]} 15. Rab1
{[%clk 0:02:33.2]} 15... Nd7 {[%clk 0:02:27.6]} 16. b4 {[%clk 0:02:32.6]} 16...
cxb4 {[%clk 0:02:20.5]} 17. Rxb4 {[%clk 0:02:29.6]} 17... a5 {[%clk 0:02:19.4]}
18. Rb5 {[%clk 0:02:25.5]} 18... e5 {[%clk 0:02:16.5]} 19. Rfb1 {[%clk
0:02:19.1]} 19... Rfb8 {[%clk 0:01:57.1]} 20. h4 {[%clk 0:02:18]} 20... b6
{[%clk 0:01:44.4]} 21. Bh3 {[%clk 0:02:17.3]} 21... Nc5 {[%clk 0:01:33.7]} 22.
Bxc5 {[%clk 0:01:17.7]} 22... bxc5 {[%clk 0:01:33]} 23. Qg4 {[%clk 0:01:10.4]}
23... Rxb5 {[%clk 0:01:23]} 24. Rxb5 {[%clk 0:00:59.1]} 24... Rb8 {[%clk
0:01:21.8]} 25. Qe6+ {[%clk 0:00:55.8]} 25... Kf8 {[%clk 0:01:10.9]} 26. h5
{[%clk 0:00:50.2]} 26... Bf6 {[%clk 0:01:07.5]} 27. hxg6 {[%clk 0:00:43.7]}
27... hxg6 {[%clk 0:01:08.4]} 28. a4 {[%clk 0:00:39.1]} 28... Kg7 {[%clk
0:01:02.5]} 29. g4 {[%clk 0:00:31.6]} 29... Rh8 {[%clk 0:00:58]} 30. Kg2 {[%clk
0:00:30.5]} 30... Rb8 {[%clk 0:00:49]} 31. g5 {[%clk 0:00:28.7]} 31... Bxg5
{[%clk 0:00:46.5]} 32. Bg4 {[%clk 0:00:19.3]} 32... Bf6 {[%clk 0:00:44.8]} 33.
Qd5 {[%clk 0:00:18.7]} 33... Bh4 {[%clk 0:00:33.5]} 34. Qe6 {[%clk 0:00:15.4]}
34... Rf8 {[%clk 0:00:31.5]} 35. Qd5 {[%clk 0:00:13.7]} 35... Rb8 {[%clk
0:00:19.7]} 36. f3 {[%clk 0:00:12.3]} 36... Bf6 {[%clk 0:00:19.1]} 37. Be6
{[%clk 0:00:11.8]} 37... Bg5 {[%clk 0:00:18.4]} 38. Kg3 {[%clk 0:00:11.1]} 38...
Bf4+ {[%clk 0:00:18.1]} 39. Kg4 {[%clk 0:00:10.7]} 39... Qd8 {[%clk 0:00:15.8]}
40. Rxb8 {[%clk 0:00:09.8]} 40... Qxb8 {[%clk 0:00:15.2]} 41. Bd7 {[%clk
0:00:08.7]} 41... Qb1 {[%clk 0:00:14.4]} 42. Kh3 {[%clk 0:00:06.9]} 42... Qh1+
{[%clk 0:00:14.2]} 43. Kg4 {[%clk 0:00:06.7]} 43... Qg2+ {[%clk 0:00:14.6]} 44.
Kh4 {[%clk 0:00:06.4]} 44... Qg3# {[%clk 0:00:14.9]} 0-1

[Event "Betsys MČR v online bleskovém šachu 2021"]
[Site "Chess.com"]
[Date "2021.04.17"]
[Round "3"]
[White "Jakuboss22005"]
[Black "Tomasbezdek07"]
[Result "1-0"]
[WhiteElo "2059"]
[BlackElo "1682"]
[TimeControl "180+1"]
[EndTime "9:27:36 PDT"]
[Termination "Uživatel Jakuboss22005 zvítězil na čas"]

1. b3 {[%clk 0:03:00.9]} 1... g6 {[%clk 0:02:57.2]} 2. Bb2 {[%clk 0:03:00.6]}
2... Nf6 {[%clk 0:02:57.8]} 3. g3 {[%clk 0:02:58.4]} 3... Bg7 {[%clk 0:02:57.5]}
4. Bg2 {[%clk 0:02:58.9]} 4... c5 {[%clk 0:02:54.9]} 5. c4 {[%clk 0:02:58.2]}
5... Nc6 {[%clk 0:02:55.2]} 6. Nf3 {[%clk 0:02:55.3]} 6... b6 {[%clk 0:02:55.6]}
7. O-O {[%clk 0:02:52.3]} 7... O-O {[%clk 0:02:53.8]} 8. d3 {[%clk 0:02:51]}
8... Bb7 {[%clk 0:02:51.8]} 9. Nbd2 {[%clk 0:02:51]} 9... Qc7 {[%clk 0:02:43.9]}
10. a3 {[%clk 0:02:47.9]} 10... e6 {[%clk 0:02:41.3]} 11. Qc2 {[%clk 0:02:36.8]}
11... d5 {[%clk 0:02:37.7]} 12. cxd5 {[%clk 0:02:35.8]} 12... exd5 {[%clk
0:02:36.4]} 13. e3 {[%clk 0:02:29.6]} 13... Rfe8 {[%clk 0:02:30.1]} 14. Rfc1
{[%clk 0:02:28.6]} 14... Qd6 {[%clk 0:02:22.9]} 15. d4 {[%clk 0:02:24.1]} 15...
cxd4 {[%clk 0:02:13]} 16. Nxd4 {[%clk 0:02:23.7]} 16... Rac8 {[%clk 0:02:08.1]}
17. Nxc6 {[%clk 0:02:16.7]} 17... Rxc6 {[%clk 0:02:05]} 18. Qd3 {[%clk
0:02:07.3]} 18... Rec8 {[%clk 0:01:43]} 19. Rxc6 {[%clk 0:02:06.6]} 19... Rxc6
{[%clk 0:01:31.8]} 20. Nf3 {[%clk 0:02:01.1]} 20... Rc8 {[%clk 0:01:14.3]} 21.
Rd1 {[%clk 0:01:57]} 21... Rd8 {[%clk 0:01:01.2]} 22. b4 {[%clk 0:01:55.9]}
22... a5 {[%clk 0:00:55.7]} 23. b5 {[%clk 0:01:38.4]} 23... Qc5 {[%clk
0:00:50.1]} 24. Bd4 {[%clk 0:01:33]} 24... Qd6 {[%clk 0:00:42.7]} 25. Rc1 {[%clk
0:01:22.3]} 25... Ne4 {[%clk 0:00:36.6]} 26. Bxg7 {[%clk 0:01:18.8]} 26... Kxg7
{[%clk 0:00:37.2]} 27. Qd4+ {[%clk 0:00:53.6]} 27... Kg8 {[%clk 0:00:34.6]} 28.
a4 {[%clk 0:00:53.6]} 28... Qf6 {[%clk 0:00:29.4]} 29. Rc7 {[%clk 0:00:41]}
29... Qxd4 {[%clk 0:00:25.3]} 30. Nxd4 {[%clk 0:00:40.4]} 30... Ba8 {[%clk
0:00:24.1]} 31. Nc6 {[%clk 0:00:32.6]} 31... Re8 {[%clk 0:00:17.3]} 32. Nd4
{[%clk 0:00:20.5]} 32... Kg7 {[%clk 0:00:16.6]} 33. Kf1 {[%clk 0:00:16.4]} 33...
Nd2+ {[%clk 0:00:14.8]} 34. Ke2 {[%clk 0:00:15.4]} 34... Nc4 {[%clk 0:00:13.5]}
35. Bh3 {[%clk 0:00:03.7]} 35... Nb2 {[%clk 0:00:11.8]} 36. Be6 {[%clk
0:00:03.2]} 36... Rf8 {[%clk 0:00:05.7]} 37. Bh3 {[%clk 0:00:02.8]} 37... Nxa4
{[%clk 0:00:05.3]} 38. Ne6+ {[%clk 0:00:02.5]} 38... Kg8 {[%clk 0:00:02.4]} 39.
Nxf8 {[%clk 0:00:03.2]} 1-0

[Event "Betsys MČR v online bleskovém šachu 2021"]
[Site "Chess.com"]
[Date "2021.04.17"]
[Round "3"]
[White "kubaches123"]
[Black "Bagr92"]
[Result "1-0"]
[WhiteElo "1980"]
[BlackElo "1588"]
[TimeControl "180+1"]
[EndTime "9:27:36 PDT"]
[Termination "Uživatel kubaches123 zvítězil na čas"]

1. d4 {[%clk 0:02:59.8]} 1... d5 {[%clk 0:02:59.7]} 2. c4 {[%clk 0:02:59.6]}
2... e6 {[%clk 0:02:59.3]} 3. Nc3 {[%clk 0:02:59.7]} 3... Nf6 {[%clk 0:02:59.8]}
4. Nf3 {[%clk 0:02:59.4]} 4... c5 {[%clk 0:02:58.5]} 5. cxd5 {[%clk 0:02:58.4]}
5... exd5 {[%clk 0:02:57.3]} 6. g3 {[%clk 0:02:58]} 6... Nc6 {[%clk 0:02:55.4]}
7. Bg2 {[%clk 0:02:58.1]} 7... cxd4 {[%clk 0:02:53.7]} 8. Nxd4 {[%clk
0:02:56.9]} 8... Bc5 {[%clk 0:02:54.2]} 9. Nb3 {[%clk 0:02:54.9]} 9... Bb6
{[%clk 0:02:52.5]} 10. O-O {[%clk 0:02:51.6]} 10... O-O {[%clk 0:02:50.3]} 11.
Bg5 {[%clk 0:02:51.2]} 11... d4 {[%clk 0:02:48.9]} 12. Ne4 {[%clk 0:02:43.2]}
12... Kh8 {[%clk 0:02:38]} 13. Rc1 {[%clk 0:02:24.8]} 13... Bf5 {[%clk
0:02:33.8]} 14. Nxf6 {[%clk 0:02:12.8]} 14... gxf6 {[%clk 0:02:32]} 15. Bh6
{[%clk 0:02:13.2]} 15... Rg8 {[%clk 0:02:31.9]} 16. Nc5 {[%clk 0:02:12.4]} 16...
Qd6 {[%clk 0:02:12.5]} 17. Nxb7 {[%clk 0:02:10]} 17... Qc7 {[%clk 0:02:06.3]}
18. Bxc6 {[%clk 0:02:03.2]} 18... Rab8 {[%clk 0:02:02.7]} 19. Bg2 {[%clk
0:01:58.8]} 19... Qe7 {[%clk 0:01:57.8]} 20. Bf4 {[%clk 0:01:12.9]} 20... Rxb7
{[%clk 0:01:54.8]} 21. Qa4 {[%clk 0:00:52.4]} 21... Rd7 {[%clk 0:01:41.4]} 22.
Rfe1 {[%clk 0:00:43.7]} 22... Rdd8 {[%clk 0:01:29.5]} 23. Qb5 {[%clk 0:00:35.8]}
23... Bg4 {[%clk 0:01:19]} 24. h3 {[%clk 0:00:31.9]} 24... Bd7 {[%clk
0:01:08.1]} 25. Qd3 {[%clk 0:00:31.7]} 25... f5 {[%clk 0:00:56.4]} 26. Kh2
{[%clk 0:00:28.6]} 26... Rg6 {[%clk 0:00:32.3]} 27. Rc2 {[%clk 0:00:24.1]} 27...
Ba4 {[%clk 0:00:26.9]} 28. b3 {[%clk 0:00:23.5]} 28... Bd7 {[%clk 0:00:26.8]}
29. Rec1 {[%clk 0:00:23.4]} 29... Re6 {[%clk 0:00:20]} 30. Bf3 {[%clk
0:00:22.4]} 30... a6 {[%clk 0:00:13.4]} 31. Bc7 {[%clk 0:00:21.9]} 31... Bxc7
{[%clk 0:00:12.7]} 32. Rxc7 {[%clk 0:00:21.6]} 32... Qd6 {[%clk 0:00:13.1]} 33.
R7c2 {[%clk 0:00:13.7]} 33... Bb5 {[%clk 0:00:12.9]} 34. Qd2 {[%clk 0:00:12.3]}
34... f4 {[%clk 0:00:08.4]} 35. g4 {[%clk 0:00:12.1]} 35... Rde8 {[%clk
0:00:04.1]} 36. Re1 {[%clk 0:00:11.7]} 36... d3 {[%clk 0:00:03.7]} 37. Rc3
{[%clk 0:00:09.3]} 37... dxe2 {[%clk 0:00:03.1]} 38. Qxd6 {[%clk 0:00:08.8]}
38... Rxd6 {[%clk 0:00:03.3]} 39. a4 {[%clk 0:00:09.7]} 39... Bd3 {[%clk
0:00:02.9]} 40. b4 {[%clk 0:00:07.6]} 40... a5 {[%clk 0:00:02.6]} 41. b5 {[%clk
0:00:07.5]} 1-0